fUSD/lending_fUSD_20260224
["ID","MTS","AMOUNT","RATE_DAILY","PERIOD"]
[406574044,1771953047119,-500.0,0.00013698,2]
[406574045,1771953047130,-500.0,0.00013698,2]
[406574046,1771953047139,-500.0,0.00013698,2]
[406574047,1771953047149,-500.0,0.00013698,2]
[406574048,1771953047158,-500.0,0.00013698,2]
[406574049,1771953047167,-500.0,0.00013698,2]
[406574050,1771953047177,-500.0,0.00013698,2]
[406574051,1771953047186,-500.0,0.00013698,2]
[406574052,1771953047195,-500.0,0.00013698,2]
[406574053,1771953047207,-500.0,0.00013698,2]
[406574054,1771953047226,-500.0,0.00013698,2]
[406574055,1771953047237,-500.0,0.00013698,2]
[406574056,1771953047247,-500.0,0.00013698,2]
[406574057,1771953047258,-500.0,0.00013698,2]
[406574058,1771953047267,-500.0,0.00013698,2]
[406574059,1771953047277,-500.0,0.00013698,2]
[406574060,1771953047287,-500.0,0.00013698,2]
[406574061,1771953047297,-510.28250517,0.00013698,2]
[406574062,1771953047306,-753.78,0.00013698,2]
[406574063,1771953047316,-753.78,0.00013698,2]
[406574064,1771953047326,-753.78,0.00013698,2]
[406574065,1771953047336,-753.78,0.00013698,2]
[406574066,1771953047346,-753.78,0.00013698,2]
[406574067,1771953047355,-753.78,0.00013698,2]
[406574068,1771953047364,-753.78,0.00013698,2]
[406574069,1771953047374,-753.78,0.00013698,2]
[406574070,1771953047384,-753.78,0.00013698,2]
[406574071,1771953047393,-753.78,0.00013698,2]
[406574072,1771953047403,-753.78,0.00013698,2]
[406574073,1771953047413,-753.78,0.00013698,2]
[406574074,1771953047423,-753.78,0.00013698,2]
[406574075,1771953047432,-753.78,0.00013698,2]
[406574076,1771953047442,-753.78,0.00013698,2]
[406574077,1771953047451,-753.78,0.00013698,2]
[406574078,1771953047461,-753.78,0.00013698,2]
[406574079,1771953047470,-753.78,0.00013698,2]
[406574080,1771953047480,-512.1,0.00013698,2]
[406574081,1771953047490,-512.1,0.00013698,2]
[406574082,1771953047500,-512.1,0.00013698,2]
[406574083,1771953047510,-512.1,0.00013698,2]
[406574084,1771953047520,-512.1,0.00013698,2]
[406574085,1771953047530,-512.1,0.00013698,2]
[406574086,1771953047540,-512.1,0.00013698,2]
[406574087,1771953047549,-512.1,0.00013698,2]
[406574088,1771953047562,-512.1,0.00013698,2]
[406574089,1771953047572,-512.1,0.00013698,2]
[406574090,1771953047582,-512.1,0.00013698,2]
[406574091,1771953047592,-512.1,0.00013698,2]
[406574092,1771953047603,-512.1,0.00013698,2]
[406574093,1771953047613,-512.1,0.00013698,2]
[406574094,1771953047622,-512.1,0.00013698,2]
[406574095,1771953047632,-512.1,0.00013698,2]
[406574096,1771953047643,-512.1,0.00013698,2]
[406574097,1771953047653,-512.1,0.00013698,2]
[406574098,1771953047662,-500.0,0.00013698,2]
[406574099,1771953047671,-500.0,0.00013698,2]
[406574100,1771953047681,-500.0,0.00013698,2]
[406574101,1771953047691,-500.0,0.00013698,2]
[406574102,1771953047701,-500.0,0.00013698,2]
[406574103,1771953047710,-500.0,0.00013698,2]
[406574104,1771953047720,-500.0,0.00013698,2]
[406574105,1771953047729,-500.0,0.00013698,2]
[406574106,1771953047740,-395.88818611,0.00013698,2]
[406574107,1771953047749,-560.18,0.00013698,2]
[406574108,1771953047759,-560.18,0.00013698,2]
[406574109,1771953047768,-560.18,0.00013698,2]
[406574110,1771953047778,-560.18,0.00013698,2]
[406574111,1771953047787,-560.18,0.00013698,2]
[406574112,1771953047796,-560.18,0.00013698,2]
[406574113,1771953047806,-560.18,0.00013698,2]
[406574114,1771953047815,-560.18,0.00013698,2]
[406574115,1771953047825,-560.18,0.00013698,2]
[406574116,1771953047834,-560.18,0.00013698,2]
[406574117,1771953047844,-560.18,0.00013698,2]
[406574118,1771953047853,-560.18,0.00013698,2]
[406574119,1771953047862,-560.18,0.00013698,2]
[406574120,1771953047872,-560.18,0.00013698,2]
[406574121,1771953047881,-560.18,0.00013698,2]
[406574122,1771953047891,-560.18,0.00013698,2]
[406574123,1771953047900,-560.18,0.00013698,2]
[406574124,1771953047910,-560.18,0.00013698,2]
[406574125,1771953047919,-560.18,0.00013698,2]
[406574126,1771953047928,-500.0,0.00013698,2]
[406574127,1771953047938,-500.0,0.00013698,2]
[406574128,1771953047947,-500.0,0.00013698,2]
[406574129,1771953047956,-500.0,0.00013698,2]
[406574130,1771953047966,-500.0,0.00013698,2]
[406574131,1771953047975,-501.58967205,0.00013698,2]
[406574132,1771953047984,-500.0,0.00013698,2]
[406574133,1771953047994,-500.0,0.00013698,2]
[406574134,1771953048003,-500.0,0.00013698,2]
[406574135,1771953048012,-500.0,0.00013698,2]
[406574136,1771953048022,-500.0,0.00013698,2]
[406574137,1771953048031,-500.0,0.00013698,2]
[406574138,1771953048041,-500.0,0.00013698,2]
[406574139,1771953048050,-500.0,0.00013698,2]
[406574140,1771953048060,-500.0,0.00013698,2]
[406574141,1771953048069,-500.0,0.00013698,2]
[406574142,1771953048078,-500.0,0.00013698,2]
[406574143,1771953048087,-500.0,0.00013698,2]
[406574144,1771953048097,-500.0,0.00013698,2]
[406574145,1771953048106,-500.0,0.00013698,2]
[406574146,1771953048116,-391.17971065,0.00013698,2]
[406574147,1771953048125,-500.0,0.00013698,2]
[406574148,1771953048215,-514.97195478,0.00013698,2]
[406574149,1771953048224,-500.0,0.00013698,2]
[406574150,1771953048233,-500.0,0.00013698,2]
[406574151,1771953048242,-500.0,0.00013698,2]
[406574152,1771953048255,-500.0,0.00013698,2]
[406574153,1771953048263,-500.0,0.00013698,2]
[406574154,1771953048272,-500.0,0.00013698,2]
[406574155,1771953048281,-500.0,0.00013698,2]
[406574156,1771953048290,-500.0,0.00013698,2]
[406574157,1771953048299,-500.0,0.00013698,2]
[406574158,1771953048308,-500.0,0.00013698,2]
[406574159,1771953048317,-500.0,0.00013698,2]
[406574160,1771953048326,-500.0,0.00013698,2]
[406574161,1771953048335,-500.0,0.00013698,2]
[406574162,1771953048344,-500.0,0.00013698,2]
[406574163,1771953048353,-500.0,0.00013698,2]
[406574164,1771953048362,-500.0,0.00013698,2]
[406574165,1771953048371,-500.0,0.00013698,2]
[406574166,1771953048380,-500.0,0.00013698,2]
[406574167,1771953048389,-500.0,0.00013698,2]
[406574168,1771953048397,-500.0,0.00013698,2]
[406574169,1771953048407,-500.0,0.00013698,2]
[406574170,1771953048415,-500.0,0.00013698,2]
[406574171,1771953048424,-500.0,0.00013698,2]
[406574172,1771953048433,-500.0,0.00013698,2]
[406574173,1771953048442,-500.0,0.00013698,2]
[406574174,1771953048451,-500.0,0.00013698,2]
[406574175,1771953048460,-500.0,0.00013698,2]
[406574176,1771953048469,-500.0,0.00013698,2]
[406574177,1771953048478,-1201.23,0.00013698,2]
[406574178,1771953048487,-1201.23,0.00013698,2]
[406574179,1771953048496,-1201.23,0.00013698,2]
[406574180,1771953048504,-1201.23,0.00013698,2]
[406574181,1771953048513,-1201.23,0.00013698,2]
[406574182,1771953048522,-1201.23,0.00013698,2]
[406574183,1771953048531,-1201.23,0.00013698,2]
[406574184,1771953048540,-1201.23,0.00013698,2]
[406574185,1771953048549,-1201.23,0.00013698,2]
[406574186,1771953048559,-1201.23,0.00013698,2]
[406574187,1771953048570,-1201.23,0.00013698,2]
[406574188,1771953048580,-1201.23,0.00013698,2]
[406574189,1771953048589,-1201.23,0.00013698,2]
[406574190,1771953048598,-1201.23,0.00013698,2]
[406574191,1771953048608,-1201.23,0.00013698,2]
[406574192,1771953048617,-1201.23,0.00013698,2]
[406574193,1771953048626,-1201.23,0.00013698,2]
[406574194,1771953048636,-1201.23,0.00013698,2]
[406574195,1771953048646,-1201.23,0.00013698,2]
[406574196,1771953048655,-566.19,0.00013698,2]
[406574197,1771953048665,-566.19,0.00013698,2]
[406574198,1771953048674,-566.19,0.00013698,2]
[406574199,1771953048683,-566.19,0.00013698,2]
[406574200,1771953048692,-566.19,0.00013698,2]
[406574201,1771953048701,-566.19,0.00013698,2]
[406574202,1771953048710,-566.19,0.00013698,2]
[406574203,1771953048719,-566.19,0.00013698,2]
[406574204,1771953048728,-566.19,0.00013698,2]
[406574205,1771953048737,-566.19,0.00013698,2]
[406574206,1771953048746,-566.19,0.00013698,2]
[406574207,1771953048755,-566.19,0.00013698,2]
[406574208,1771953048764,-566.19,0.00013698,2]
[406574209,1771953048773,-566.19,0.00013698,2]
[406574210,1771953048783,-566.19,0.00013698,2]
[406574211,1771953048792,-566.19,0.00013698,2]
[406574212,1771953048801,-566.19,0.00013698,2]
[406574213,1771953048810,-566.19,0.00013698,2]
[406574214,1771953048819,-500.0,0.00013698,2]
[406574215,1771953048828,-500.0,0.00013698,2]
[406574216,1771953048837,-500.0,0.00013698,2]
[406574217,1771953048846,-500.0,0.00013698,2]
[406574218,1771953048855,-500.0,0.00013698,2]
[406574219,1771953048864,-500.0,0.00013698,2]
[406574220,1771953048873,-500.0,0.00013698,2]
[406574221,1771953048882,-500.0,0.00013698,2]
[406574222,1771953048891,-500.0,0.00013698,2]
[406574223,1771953048901,-500.0,0.00013698,2]
[406574224,1771953048909,-500.0,0.00013698,2]
[406574225,1771953048918,-500.0,0.00013698,2]
[406574226,1771953048928,-500.0,0.00013698,2]
[406574227,1771953048937,-500.0,0.00013698,2]
[406574228,1771953048947,-500.0,0.00013698,2]
[406574229,1771953048956,-500.0,0.00013698,2]
[406574230,1771953048966,-500.0,0.00013698,2]
[406574231,1771953048974,-500.0,0.00013698,2]
[406574232,1771953048984,-500.0,0.00013698,2]
[406574233,1771953048993,-500.0,0.00013698,2]
[406574234,1771953049002,-500.0,0.00013698,2]
[406574235,1771953049011,-500.0,0.00013698,2]
[406574236,1771953049020,-500.0,0.00013698,2]
[406574237,1771953049029,-222.44569411,0.00013698,2]
[406574238,1771953049038,-500.0,0.00013698,2]
[406574239,1771953049047,-364.45426378,0.00013698,2]
[406574240,1771953049056,-591.67,0.00013698,2]
[406574241,1771953049064,-591.67,0.00013698,2]
[406574242,1771953049074,-591.67,0.00013698,2]
[406574243,1771953049083,-591.67,0.00013698,2]
[406574244,1771953049092,-591.67,0.00013698,2]
[406574245,1771953049101,-591.67,0.00013698,2]
[406574246,1771953049110,-591.67,0.00013698,2]
[406574247,1771953049120,-591.67,0.00013698,2]
[406574248,1771953049130,-591.67,0.00013698,2]
[406574249,1771953049139,-591.67,0.00013698,2]
[406574250,1771953049148,-591.67,0.00013698,2]
[406574251,1771953049157,-591.67,0.00013698,2]
[406574252,1771953049166,-591.67,0.00013698,2]
[406574253,1771953049175,-591.67,0.00013698,2]
[406574254,1771953049184,-591.67,0.00013698,2]
[406574255,1771953049193,-591.67,0.00013698,2]
[406574256,1771953049201,-591.67,0.00013698,2]
[406574257,1771953049211,-591.67,0.00013698,2]
[406574258,1771953049222,-917.0,0.00013698,2]
[406574259,1771953049232,-917.0,0.00013698,2]
[406574260,1771953049243,-917.0,0.00013698,2]
[406574261,1771953049252,-917.0,0.00013698,2]
[406574262,1771953049262,-917.0,0.00013698,2]
[406574263,1771953049271,-917.0,0.00013698,2]
[406574264,1771953049281,-917.0,0.00013698,2]
[406574265,1771953049290,-917.0,0.00013698,2]
[406574266,1771953049299,-917.0,0.00013698,2]
[406574267,1771953049307,-917.0,0.00013698,2]
[406574268,1771953049318,-917.0,0.00013698,2]
[406574269,1771953049327,-917.0,0.00013698,2]
[406574270,1771953049335,-917.0,0.00013698,2]
[406574271,1771953049345,-917.0,0.00013698,2]
[406574272,1771953049354,-917.0,0.00013698,2]
[406574273,1771953049363,-917.0,0.00013698,2]
[406574274,1771953049373,-917.0,0.00013698,2]
[406574275,1771953049383,-917.0,0.00013698,2]
[406574276,1771953049392,-500.0,0.00013698,2]
[406574277,1771953049401,-500.0,0.00013698,2]
[406574278,1771953049410,-500.0,0.00013698,2]
[406574279,1771953049420,-500.0,0.00013698,2]
[406574280,1771953049430,-500.0,0.00013698,2]
[406574281,1771953049442,-500.0,0.00013698,2]
[406574282,1771953049451,-500.0,0.00013698,2]
[406574283,1771953049460,-500.0,0.00013698,2]
[406574284,1771953049469,-500.0,0.00013698,2]
[406574285,1771953049478,-500.0,0.00013698,2]
[406574286,1771953049488,-500.0,0.00013698,2]
[406574287,1771953049497,-500.0,0.00013698,2]
[406574288,1771953049506,-500.0,0.00013698,2]
[406574289,1771953049515,-500.0,0.00013698,2]
[406574290,1771953049524,-500.0,0.00013698,2]
[406574291,1771953049534,-500.0,0.00013698,2]
[406574292,1771953049543,-500.0,0.00013698,2]
[406574293,1771953049553,-620.42088911,0.00013698,2]
[406574294,1771953049563,-500.0,0.00013698,2]
[406574295,1771953049577,-500.0,0.00013698,2]
[406574296,1771953049586,-500.0,0.00013698,2]
[406574297,1771953049595,-500.0,0.00013698,2]
[406574298,1771953049605,-200.0,0.00013699,2]
[406574299,1771953049616,-176.41,0.00013699,2]
[406574300,1771953049625,-215.42973367,0.000137,2]
[406574301,1771953049635,-3500.0,0.0001386,2]
[406574302,1771953049646,-33263.73301588,0.00013861,2]
[406574303,1771953049656,-753.78,0.00013966,2]
[406574304,1771953049665,-512.1,0.00013966,2]
[406574305,1771953049674,-534.96315196,0.00013966,2]
[406574306,1771953049684,-566.19,0.00013966,2]
[406574307,1771953049694,-591.67,0.00013966,2]
[406574308,1771953049704,-917.0,0.00013966,2]
[406574309,1771953049714,-83659.2068,0.00013967,2]
[406574310,1771953049724,-1000.0,0.00013997,2]
[406574311,1771953049733,-151.0,0.00014059,2]
[406574312,1771953049743,-151.0,0.00014059,2]
[406574313,1771953049752,-151.0,0.00014059,2]
[406574314,1771953049761,-151.0,0.00014059,2]
[406574315,1771953049770,-151.0,0.00014059,2]
[406574316,1771953049780,-151.0,0.00014059,2]
[406574317,1771953049789,-151.0,0.00014059,2]
[406574318,1771953049799,-151.0,0.00014059,2]
[406574319,1771953049809,-151.0,0.00014059,2]
[406574320,1771953049818,-151.0,0.00014059,2]
[406574321,1771953049828,-151.0,0.00014059,2]
[406574322,1771953049838,-46203.80767789,0.00014085,2]
[406574323,1771953049847,-10156.31,0.00014156,2]
[406574324,1771953049857,-1348.323943,0.0001423,7]
[406574325,1771953049866,-5147.096948,0.0001423,7]
[406574326,1771953049875,-4068.28864446,0.00014294,2]
[406574327,1771953049885,-620.70979822,0.00014408,2]
[406574328,1771953049895,-151.0,0.00014634,2]
[406574329,1771953049904,-151.0,0.00014634,2]
[406574330,1771953049914,-1613.0,0.00014815,2]
[406574331,1771953049923,-6453.0,0.00014815,2]
[406574332,1771953049933,-46203.80767789,0.00014879,2]
[406574333,1771953049942,-2129.0,0.00014899,2]
[406574334,1771953049951,-150.0,0.000149,2]
[406574335,1771953049961,-176.18400318,0.000149,2]
[406574336,1771953049970,-6849.466414,0.00014966,7]
[406574337,1771953049979,-982.350301,0.00014967,7]
[406574338,1771953049988,-250.0,0.00015,2]
[406574339,1771953049998,-10016.0,0.00015,2]
[406574340,1771953050011,-630.15,0.00015068,2]
[406574341,1771953050021,-500.0,0.000151,2]
[406574342,1771953050030,-500.0,0.000151,2]
[406574343,1771953050039,-504.28462668,0.000151,2]
[406574344,1771953050049,-503.3459029,0.000151,2]
[406574345,1771953050059,-500.0,0.000151,2]
[406574346,1771953050068,-500.0,0.000151,2]
[406574347,1771953050078,-500.0,0.000151,2]
[406574348,1771953050087,-500.0,0.000151,2]
[406574349,1771953050096,-162.13031906,0.000151,2]
[406574350,1771953050106,-500.0,0.000151,2]
[406574351,1771953050115,-511.18624479,0.000151,2]
[406574352,1771953050126,-504.16390705,0.000151,2]
[406574353,1771953050135,-503.99220136,0.000151,2]
[406574354,1771953050145,-500.0,0.000151,2]
[406574355,1771953050154,-304.38005979,0.000151,2]
[406574356,1771953050164,-500.0,0.000151,2]
[406574357,1771953050174,-500.0,0.000151,2]
[406574358,1771953050183,-500.0,0.000151,2]
[406574359,1771953050193,-509.0327441,0.000151,2]
[406574360,1771953050203,-500.0,0.000151,2]
[406574361,1771953050212,-500.0,0.000151,2]
[406574362,1771953050222,-209.6165406,0.000151,2]
[406574363,1771953050231,-501.93759306,0.000151,2]
[406574364,1771953050241,-487.94127816,0.000151,2]
[406574365,1771953050251,-500.0,0.000151,2]
[406574366,1771953050262,-500.0,0.000151,2]
[406574367,1771953050271,-168.61283304,0.000151,2]
[406574368,1771953050281,-186.88471708,0.000151,2]
[406574369,1771953050290,-170.38160206,0.000151,2]
[406574370,1771953050300,-164.16786887,0.000151,2]
[406574371,1771953050310,-501.44667058,0.000151,2]
[406574372,1771953050320,-599.206441,0.000151,2]
[406574373,1771953050330,-500.0,0.000151,2]
[406574374,1771953050340,-500.0,0.000151,2]
[406574375,1771953050350,-503.60394883,0.000151,2]
[406574376,1771953050360,-1000.0,0.00015269,2]
[406574377,1771953050374,-630.15,0.00015342,2]
[406574378,1771953050383,-33263.73301588,0.00015367,2]
[406574379,1771953050393,-173.87087054,0.00015456,2]
[406574380,1771953050402,-183.142694,0.00015559,7]
[406574381,1771953050411,-500.0,0.00015648,2]
[406574382,1771953050421,-436.95947364,0.00015648,2]
[406574383,1771953050431,-501.53221813,0.00015648,2]
[406574384,1771953050440,-1000.0,0.00015648,2]
[406574385,1771953050450,-1000.0,0.00015648,2]
[406574386,1771953050459,-1000.0,0.00015648,2]
[406574387,1771953050468,-1092.86766843,0.00015648,2]
[406574388,1771953050478,-1000.0,0.00015648,2]
[406574389,1771953050487,-1000.0,0.00015648,2]
[406574390,1771953050496,-583.60061699,0.00015648,2]
[406574391,1771953050506,-243.69912151,0.00015648,2]
[406574392,1771953050516,-1000.0,0.00015648,2]
[406574393,1771953050525,-1000.0,0.00015648,2]
[406574394,1771953050536,-46203.80767789,0.00015672,2]
[406574395,1771953050546,-380.32235674,0.00016,2]
[406574396,1771953050555,-380.32235674,0.000161,2]
[406574397,1771953050571,-9999.99,0.00016116,2]
[406574398,1771953050581,-602.53164684,0.00016196,2]
[406574399,1771953050591,-1500.0,0.00016196,2]
[406574400,1771953050601,-1390.05507377,0.00016196,2]
[406574401,1771953050614,-693.71551848,0.00016196,2]
[406574402,1771953050625,-1500.0,0.00016196,2]
[406574403,1771953050635,-1500.0,0.00016196,2]
[406574404,1771953050645,-1500.0,0.00016196,2]
[406574405,1771953050655,-380.32235674,0.000162,2]
[406574406,1771953050666,-2258.0,0.00016297,2]
[406574407,1771953050675,-9035.0,0.00016297,2]
[406574408,1771953050685,-2896.0,0.00016388,2]
[406574409,1771953050694,-150.73989367,0.00016438,2]
[406574410,1771953050704,-46203.80767789,0.00016465,2]
[406574411,1771953050714,-2000.0,0.00016744,2]
[406574412,1771953050724,-932.65135931,0.00016744,2]
[406574413,1771953050733,-1255.82806005,0.00016744,2]
[406574414,1771953050742,-33263.73301588,0.00016874,2]
[406574415,1771953050752,-300.0,0.00017,2]
[406574416,1771953050762,-1200.21212036,0.00017292,2]
[406574417,1771953050771,-150.0,0.00017708,2]
[406574418,1771953050781,-1097.40380822,0.00017808,2]
[406574419,1771953050790,-1097.40380822,0.00017808,2]
[406574420,1771953050800,-1097.40380822,0.00017808,2]
[406574421,1771953050810,-1097.40380822,0.00017808,2]
[406574422,1771953050819,-1097.40380822,0.00017808,2]
[406574423,1771953050829,-1097.40380822,0.00017808,2]
[406574424,1771953050838,-1097.40380822,0.00017808,2]
[406574425,1771953050848,-1097.40380822,0.00017808,2]
[406574426,1771953050858,-1097.40380822,0.00017808,2]
[406574427,1771953050868,-1097.40380822,0.00017808,2]
[406574428,1771953050878,-1097.40380822,0.00017808,2]
[406574429,1771953050887,-1097.40380822,0.00017808,2]
[406574430,1771953050896,-1097.40380822,0.00017808,2]
[406574431,1771953050906,-1097.40380822,0.00017808,2]
[406574432,1771953050916,-1097.40380822,0.00017808,2]
[406574433,1771953050925,-1097.40380822,0.00017808,2]
[406574434,1771953050935,-1097.40380822,0.00017808,2]
[406574435,1771953050945,-1097.40380822,0.00017808,2]
[406574436,1771953050955,-1097.40380822,0.00017808,2]
[406574437,1771953050965,-1170.56406209,0.00017808,2]
[406574438,1771953050975,-1170.56406209,0.00017808,2]
[406574439,1771953050985,-1170.56406209,0.00017808,2]
[406574440,1771953050995,-1170.56406209,0.00017808,2]
[406574441,1771953051005,-1170.56406209,0.00017808,2]
[406574442,1771953051015,-1170.56406209,0.00017808,2]
[406574443,1771953051025,-1170.56406209,0.00017808,2]
[406574444,1771953051034,-1170.56406209,0.00017808,2]
[406574445,1771953051044,-1170.56406209,0.00017808,2]
[406574446,1771953051054,-800.0,0.00017808,2]
[406574447,1771953051064,-3162.0,0.00017926,2]
[406574448,1771953051075,-11548.0,0.00017926,2]
[406574449,1771953051085,-200.0,0.00018128,2]
[406574450,1771953051095,-33263.73301588,0.0001838,2]
[406574451,1771953051105,-800.0,0.00018904,2]
[406574452,1771953051115,-3146.089201,0.00018973,7]
[406574453,1771953051126,-12009.892879,0.00018973,7]
[406574454,1771953051136,-1052.0,0.00019664,2]
[406574455,1771953051146,-1052.0,0.00019704,2]
[406574456,1771953051155,-1566.0,0.00019719,2]
[406574457,1771953051165,-1052.0,0.00019841,2]
[406574458,1771953051175,-33263.73301588,0.00019887,2]
[406574459,1771953051185,-560.18,0.00019955,2]
[406574460,1771953051194,-560.18,0.00019955,2]
[406574461,1771953051204,-560.18,0.00019955,2]
[406574462,1771953051214,-560.18,0.00019955,2]
[406574463,1771953051223,-560.2666601,0.00019955,2]
[406574464,1771953051233,-1201.23,0.00019955,2]
[406574465,1771953051243,-1201.23,0.00019955,2]
[406574466,1771953051252,-1201.23,0.00019955,2]
[406574467,1771953051262,-1201.23,0.00019955,2]
[406574468,1771953051271,-1201.34528268,0.00019955,2]
[406574469,1771953051281,-15982.088301,0.00019955,7]
[406574470,1771953051292,-2292.150703,0.00019956,7]
[406574471,1771953051301,-1052.0,0.00019972,2]
[406574472,1771953051311,-159.21514863,0.00020053,2]
[406574473,1771953051321,-453.35,0.00020053,2]
[406574474,1771953051330,-453.35,0.0002022,2]
[406574475,1771953051340,-1052.0,0.00020222,2]
[406574476,1771953051350,-1052.0,0.00020358,2]
[406574477,1771953051359,-453.35,0.00020387,2]
[406574478,1771953051369,-1052.0,0.00020399,2]
[406574479,1771953051378,-1052.0,0.0002041,2]
[406574480,1771953051388,-1052.0,0.00020482,2]
[406574481,1771953051397,-453.35,0.00020554,2]
[406574482,1771953051407,-1052.0,0.00020576,2]
[406574483,1771953051417,-1052.0,0.00020605,2]
[406574484,1771953051427,-453.35,0.00020721,2]
[406574485,1771953051437,-1052.0,0.00020733,2]
[406574486,1771953051446,-1052.0,0.00020742,2]
[406574487,1771953051455,-1052.0,0.00020885,2]
[406574488,1771953051465,-453.35,0.00020888,2]
[406574489,1771953051475,-1052.0,0.0002099,2]
[406574490,1771953051486,-1052.0,0.00021001,2]
[406574491,1771953051496,-1052.0,0.00021025,2]
[406574492,1771953051506,-453.38619017,0.00021056,2]
[406574493,1771953051517,-1052.0,0.00021099,2]
[406574494,1771953051527,-159.62910539,0.00021101,2]
[406574495,1771953051538,-1052.0,0.00021156,2]
[406574496,1771953051547,-1052.0,0.00021219,2]
[406574497,1771953051558,-1052.0,0.00021323,2]
[406574498,1771953051570,-33263.73301588,0.00021393,2]
[406574499,1771953051579,-1052.0,0.00021396,2]
[406574500,1771953051589,-1052.0,0.00021533,2]
[406574501,1771953051599,-1052.0,0.00021536,2]
[406574502,1771953051609,-1052.0,0.00021543,2]
[406574503,1771953051619,-33263.73301588,0.000229,2]
[406574504,1771953051628,-4664.03,0.00023,2]
[406574505,1771953051639,-160.0,0.00023,2]
[406574506,1771953051650,-233.77,0.00024067,2]
[406574507,1771953051660,-753.78,0.00024449,2]
[406574508,1771953051669,-753.78,0.00024449,2]
[406574509,1771953051679,-753.78,0.00024449,2]
[406574510,1771953051690,-753.78,0.00024449,2]
[406574511,1771953051700,-753.80338985,0.00024449,2]
[406574512,1771953051710,-512.1,0.00024449,2]
[406574513,1771953051882,-512.1,0.00024449,2]
[406574514,1771953051892,-512.1,0.00024449,2]
[406574515,1771953051901,-512.1,0.00024449,2]
[406574516,1771953051911,-512.33,0.00024449,2]
[406574517,1771953051920,-566.19,0.00024449,2]
[406574518,1771953051929,-566.19,0.00024449,2]
[406574519,1771953051939,-566.19,0.00024449,2]
[406574520,1771953051948,-566.19,0.00024449,2]
[406574521,1771953051958,-566.42459131,0.00024449,2]
[406574522,1771953051968,-591.67,0.00024449,2]
[406574523,1771953051978,-591.67,0.00024449,2]
[406574524,1771953051988,-591.67,0.00024449,2]
[406574525,1771953051998,-591.67,0.00024449,2]
[406574526,1771953052007,-591.71706108,0.00024449,2]
[406574527,1771953052017,-917.0,0.00024449,2]
[406574528,1771953052027,-917.0,0.00024449,2]
[406574529,1771953052037,-917.0,0.00024449,2]
[406574530,1771953052046,-917.0,0.00024449,2]
[406574531,1771953052059,-917.17986232,0.00024449,2]
[406574532,1771953052080,-1000.0,0.00024494,7]
[406574533,1771953052089,-1000.0,0.00024658,2]
[406574534,1771953052098,-150.0,0.00024658,2]
[406574535,1771953052107,-150.0,0.0002589,2]
[406574536,1771953052118,-168.86,0.00026209,12]
[406574537,1771953052130,-160.41920836,0.00026253,22]
[406574538,1771953052139,-1064.88951945,0.00026592,2]
[406574539,1771953052147,-176.50500373,0.00027113,24]
[406574540,1771953052157,-150.0,0.00027185,2]
[406574541,1771953052166,-9145.03364528,0.00027326,2]
[406574542,1771953052176,-500.0,0.00027397,2]
[406574543,1771953052185,-259.68122897,0.00027397,2]